fUST/lending_fUST_20250207
["ID","MTS","AMOUNT","RATE_DAILY","PERIOD"]
[352048441,1738900240748,-826.24040444,0.00014981,2]
[352048442,1738900240758,-2000.0,0.00015,2]
[352048443,1738900240768,-582.54,0.00015,4]
[352048444,1738900240779,-157.6829115,0.00015032,2]
[352048445,1738900240789,-500.0,0.00015053,2]
[352048446,1738900240799,-166.0,0.00015068,2]
[352048447,1738900240809,-826.24040444,0.00015081,2]
[352048448,1738900240819,-826.24040444,0.00015181,2]
[352048449,1738900240829,-439.84906814,0.0001519,2]
[352048450,1738900240839,-1200.0,0.00015214,2]
[352048451,1738900240849,-826.24040444,0.00015281,2]
[352048452,1738900240859,-251.23587365,0.0001538,2]
[352048453,1738900240869,-500.0,0.0001538,2]
[352048454,1738900240878,-583.05487514,0.0001538,2]
[352048455,1738900240887,-826.24040444,0.00015381,2]
[352048456,1738900240897,-300.0,0.00015478,2]
[352048457,1738900240907,-826.24040444,0.00015481,2]
[352048458,1738900240916,-826.24040444,0.00015581,2]
[352048459,1738900240925,-780.4880378,0.00015681,2]
[352048464,1738900243116,-396.0,0.00014732,2]
[352048465,1738900243126,-45.75236664,0.00015681,2]
[352048466,1738900243135,-338.0,0.0001573,2]
[352048467,1738900243144,-826.24040444,0.00015781,2]
[352048468,1738900243154,-12.19025725,0.00015881,2]
[352048469,1738900243171,-375.481998,0.00015881,2]
[352048470,1738900243183,-438.56814919,0.00015881,2]
[352048471,1738900243194,-294.63703232,0.00015924,2]
[352048472,1738900243207,-292.36296768,0.00015924,2]
[352048473,1738900243218,-241.14931362,0.00015981,2]
[352048474,1738900243231,-358.08949814,0.00015981,2]
[352048475,1738900243243,-227.00159268,0.00015981,2]
[352048476,1738900243253,-858.07190177,0.00016,2]
[352048478,1738900243269,-1141.92809823,0.00016,2]
[352048479,1738900243279,-501.02,0.00016,2]
[352048480,1738900243288,-662.316,0.0001602,2]
[352048481,1738900243298,-826.24040444,0.00016081,2]
[352048482,1738900243308,-155.328665,0.00016109,3]
[352048483,1738900243317,-826.24040444,0.00016181,2]
[352048484,1738900243327,-506.0,0.000162,6]
[352048485,1738900243336,-160.0,0.0001627,5]
[352048486,1738900243345,-826.24040444,0.00016281,2]
[352048487,1738900243355,-826.24040444,0.00016381,2]
[352048488,1738900243364,-557.27,0.00016438,2]
[352048489,1738900243374,-500.0,0.00016438,2]
[352048490,1738900243384,-500.0,0.00016438,2]
[352048491,1738900243393,-500.0,0.00016438,2]
[352048492,1738900243402,-500.0,0.00016438,2]
[352048493,1738900243411,-500.0,0.00016438,2]
[352048494,1738900243421,-500.0,0.00016438,2]
[352048495,1738900243430,-500.0,0.00016438,2]
[352048496,1738900243440,-500.0,0.00016438,2]
[352048497,1738900243449,-500.0,0.00016438,2]
[352048498,1738900243459,-161.65291968,0.00016438,2]
[352048499,1738900243468,-500.0,0.00016438,2]
[352048500,1738900243477,-500.0,0.00016438,2]
[352048501,1738900243489,-500.0,0.00016438,2]
[352048502,1738900243499,-157.6829115,0.00016466,2]
[352048503,1738900243510,-826.24040444,0.00016481,2]
[352048504,1738900243520,-826.24040444,0.00016581,2]
[352048505,1738900243530,-826.24040444,0.00016681,2]
[352048506,1738900243540,-826.24040444,0.00016781,2]
[352048507,1738900243550,-338.0,0.0001686,2]
[352048508,1738900243560,-348.23233188,0.0001688,2]
[352048509,1738900243570,-826.24040444,0.00016881,2]
[352048510,1738900243580,-826.24040444,0.00016981,2]
[352048511,1738900243590,-557.27,0.00016986,3]
[352048512,1738900243600,-839.9,0.00017,2]
[352048513,1738900243609,-200.0,0.00017,6]
[352048514,1738900243618,-200.0,0.00017,5]
[352048515,1738900243628,-200.0,0.00017,7]
[352048516,1738900243638,-200.0,0.00017,6]
[352048517,1738900243647,-826.24040444,0.00017081,2]
[352048518,1738900243657,-500.72901716,0.00017172,2]
[352048519,1738900243667,-826.24040444,0.00017181,2]
[352048520,1738900243676,-13264.03974987,0.00017221,2]
[352048521,1738900243686,-826.24040444,0.00017281,2]
[352048522,1738900243696,-750.59,0.00017324,2]
[352048523,1738900243706,-255.520292,0.00017325,2]
[352048524,1738900243716,-826.24040444,0.00017381,2]
[352048525,1738900243726,-823.0,0.00017459,2]
[352048526,1738900243736,-826.24040444,0.00017481,2]
[352048527,1738900243746,-187.32,0.000175,10]
[352048528,1738900243755,-200.0,0.000175,7]
[352048529,1738900243765,-200.0,0.000175,10]
[352048530,1738900243775,-38571.51235609,0.000175,2]
[352048531,1738900243784,-203.67131363,0.000175,2]
[352048532,1738900243794,-4641.72382853,0.000175,2]
[352048533,1738900243805,-6886.53428541,0.000175,2]
[352048534,1738900243815,-42233.59214489,0.000175,2]
[352048535,1738900243825,-557.27,0.00017534,4]
[352048536,1738900243834,-500.36409055,0.00017543,2]
[352048537,1738900243844,-826.24040444,0.00017581,2]
[352048538,1738900243854,-2041.20947573,0.000176,2]
[352048539,1738900243864,-150.0,0.00017626,2]
[352048540,1738900243873,-150.0,0.00017626,2]
[352048541,1738900243883,-826.24040444,0.00017681,2]
[352048542,1738900243892,-506.0,0.000177,7]
[352048543,1738900243901,-150.0,0.00017732,2]
[352048544,1738900243910,-537.0,0.00017732,2]
[352048545,1738900243919,-1975.0,0.00017732,2]
[352048546,1738900243930,-2298.0,0.00017732,2]
[352048547,1738900243940,-396.0,0.00017732,2]
[352048548,1738900243950,-1919.29,0.00017743,2]
[352048549,1738900243961,-826.24040444,0.00017781,2]
[352048550,1738900243972,-4499.26190061,0.00017799,2]
[352048551,1738900243983,-37955.54787068,0.000178,2]
[352048552,1738900243992,-5000.0,0.00017808,7]
[352048553,1738900244005,-5000.0,0.00017808,7]
[352048554,1738900244016,-5000.0,0.00017808,7]
[352048555,1738900244025,-5000.0,0.00017808,7]
[352048556,1738900244035,-5000.0,0.00017808,7]
[352048557,1738900244045,-5000.0,0.00017808,7]
[352048558,1738900244055,-5000.0,0.00017808,7]
[352048559,1738900244064,-2000.00908278,0.00017808,7]
[352048560,1738900244074,-7438.69753278,0.00017808,7]
[352048561,1738900244086,-500.0,0.00017872,2]
[352048562,1738900244096,-289.85711859,0.00017872,2]
[352048563,1738900244106,-503.67002889,0.00017873,2]
[352048564,1738900244116,-500.0,0.00017873,2]
[352048565,1738900244126,-500.0,0.00017873,2]
[352048566,1738900244136,-500.0,0.00017873,2]
[352048567,1738900244146,-826.24040444,0.00017881,2]
[352048568,1738900244156,-308.51999079,0.000179,2]
[352048569,1738900244165,-308.51999079,0.000179,2]
[352048570,1738900244176,-308.51999079,0.000179,2]
[352048571,1738900244186,-2879.5837299,0.000179,2]
[352048572,1738900244195,-2879.58372987,0.000179,2]
[352048573,1738900244205,-2879.58372987,0.000179,2]
[352048574,1738900244215,-2879.58372987,0.000179,2]
[352048575,1738900244226,-52711.01223414,0.000179,2]
[352048576,1738900244237,-6519.69772029,0.000179,2]
[352048577,1738900244247,-37470.07605228,0.000179,15]
[352048578,1738900244257,-25454.56,0.000179,2]
[352048579,1738900244268,-30844.25,0.000179,2]
[352048580,1738900244277,-152.64,0.000179,31]
[352048581,1738900244286,-152.64,0.000179,31]
[352048582,1738900244296,-152.64,0.000179,31]
[352048583,1738900244306,-152.64,0.000179,31]
[352048584,1738900244315,-152.64,0.000179,31]
[352048585,1738900244325,-152.64,0.000179,31]
[352048586,1738900244335,-152.64,0.000179,31]
[352048587,1738900244345,-152.64,0.000179,31]
[352048588,1738900244354,-152.64,0.000179,31]
[352048589,1738900244364,-152.64,0.000179,31]
[352048590,1738900244377,-500.0,0.000179,2]
[352048591,1738900244392,-500.0,0.000179,2]
[352048592,1738900244402,-150.2,0.000179,2]
[352048593,1738900244412,-157.6829115,0.000179,2]
[352048594,1738900244422,-156.13723324,0.000179,2]
[352048595,1738900244432,-156.13723324,0.000179,2]
[352048596,1738900244442,-156.13723324,0.000179,2]
[352048597,1738900244451,-156.13723324,0.000179,2]
[352048598,1738900244461,-156.13723324,0.000179,2]
[352048599,1738900244470,-156.13723324,0.000179,2]
[352048600,1738900244479,-156.13,0.000179,2]
[352048601,1738900244490,-150.01420449,0.000179,2]
[352048602,1738900244500,-150.01420449,0.000179,2]
[352048603,1738900244510,-150.01420449,0.000179,2]
[352048604,1738900244520,-150.01420449,0.000179,2]
[352048605,1738900244530,-150.01420449,0.000179,2]
[352048606,1738900244539,-150.01420449,0.000179,2]
[352048607,1738900244549,-150.01420449,0.000179,2]
[352048608,1738900244559,-150.01420449,0.000179,2]
[352048609,1738900244572,-150.01420449,0.000179,2]
[352048610,1738900244583,-150.01420449,0.000179,2]
[352048611,1738900244594,-150.01420449,0.000179,2]
[352048612,1738900244604,-150.01420449,0.000179,2]
[352048613,1738900244615,-150.01420449,0.000179,2]
[352048614,1738900244625,-150.01420449,0.000179,2]
[352048615,1738900244635,-150.01420449,0.000179,2]
[352048616,1738900244644,-150.01420449,0.000179,2]
[352048617,1738900244654,-150.01,0.000179,2]
[352048618,1738900244664,-12614.14035566,0.000179,2]
[352048619,1738900244674,-826.24040444,0.00017981,2]
[352048620,1738900244683,-548.86543188,0.0001799,2]
[352048621,1738900244693,-535.0,0.0001799,2]
[352048622,1738900244704,-7874.26505869,0.00017999,2]
[352048623,1738900244714,-167337.32938841,0.00018,5]
[352048624,1738900244727,-11222.30173538,0.00018,5]
[352048634,1738900246053,-572.5,0.00017743,2]
[352048635,1738900246105,-1274.08082,0.00017743,2]
[352048636,1738900246115,-27050.07050792,0.00018,5]
[352048637,1738900246160,-2428.45496767,0.00018,5]
[352048638,1738900771084,544.26,0.00010959,2]
[352048639,1738900781613,206.16,0.00010959,2]
[352048640,1738900812947,127.41173603,0.00010959,2]
[352048641,1738900812980,44.38826397,0.00010959,2]
[352048642,1738900823468,859.02,0.00010959,2]
[352048643,1738901230209,-3996.47497953,0.00013598,2]
[352048644,1738901230230,-500.0,0.00013698,2]
[352048645,1738901230250,-3046.0618626,0.00013839,2]
[352048646,1738901230270,-400.0,0.00013973,2]
[352048647,1738901230296,-300.0,0.00014094,2]
[352048648,1738901230319,-502.37935356,0.00014095,2]
[352048649,1738901230340,-502.57622079,0.00014095,2]
[352048650,1738901230361,-503.97383068,0.00014095,2]
[352048651,1738901230382,-503.06887511,0.00014095,2]
[352048652,1738901230401,-500.0,0.00014095,2]
[352048653,1738901230420,-503.31623124,0.00014095,2]
[352048654,1738901230442,-503.00405104,0.00014095,2]
[352048655,1738901230464,-500.0,0.00014095,2]
[352048656,1738901230485,-414.66810314,0.00014095,2]
[352048657,1738901246085,-89.01283581,0.00014095,2]
[352048658,1738901246106,-500.0,0.00014232,2]
[352048659,1738901246128,-533.63018034,0.00014232,2]
[352048660,1738901246149,-536.2949459,0.00014369,2]
[352048661,1738901246171,-220.60717171,0.00014369,2]
[352048662,1738901246196,-150.0,0.00014378,2]
[352048663,1738901246218,-148.57285238,0.00014378,2]
[352048708,1738901432264,-298.20582391,0.00014377,2]
[352048720,1738901432374,-1.79417609,0.00014377,2]
[352048722,1738901432383,-388.42714762,0.00014378,2]
[352048724,1738901432393,-1975.0,0.00014378,2]
[352048726,1738901432403,-2298.0,0.00014378,2]
[352048728,1738901432412,-1015.63,0.000145,2]
[352048730,1738901432421,-431.0,0.000147,5]
[352048732,1738901432433,-396.0,0.0001472,2]
[352048734,1738901432443,-150.0,0.00014732,2]
[352048736,1738901432453,-150.087,0.00014782,2]
[352048738,1738901432462,-500.0,0.00014799,2]
[352048740,1738901432472,-162.27847657,0.000148,2]
[352048743,1738901432483,-1558.86644373,0.000148,2]
[352049185,1738901438030,-3810.99269599,0.000148,2]
[352049186,1738901438090,-4467.86238371,0.000148,2]
[352049187,1738901438100,-203.4913393,0.00014891,2]
[352049188,1738901438110,-504.23264381,0.00014999,2]
[352049189,1738901438120,-2000.0,0.00015,2]
[352049190,1738901438129,-166.0,0.00015068,2]
[352049191,1738901438139,-370.9365957,0.00015139,2]
[352049192,1738901438149,-1200.0,0.00015259,2]
[352049193,1738901438159,-420.0,0.00015745,2]
[352049194,1738901438168,-2000.0,0.00016,2]
[352049195,1738901438177,-150.0,0.00016,2]
[352049196,1738901438187,-431.0,0.000162,6]
[352049197,1738901438196,-609.20373609,0.00016436,2]
[352049198,1738901438208,-500.75350284,0.00016437,2]
[352049199,1738901438217,-500.39781891,0.00016437,2]
[352049200,1738901438225,-503.84584441,0.00016437,2]
[352049201,1738901438234,-503.67505808,0.00016437,2]
[352049202,1738901438244,-501.33318012,0.00016437,2]
[352049203,1738901438254,-500.0,0.00016437,2]
[352049204,1738901438263,-500.0,0.00016438,2]
[352049205,1738901438273,-500.0,0.00016438,2]
[352049206,1738901438283,-500.0,0.00016438,2]
[352049207,1738901438293,-500.0,0.00016574,2]
[352049208,1738901438302,-500.0,0.00016711,2]
[352049209,1738901438311,-312.70313587,0.00016848,2]
[352049210,1738901438320,-500.0,0.00016986,3]
[352049211,1738901438330,-522.0,0.00017,2]
[352049212,1738901438339,-561.319,0.00017,2]
[352049213,1738901438348,-14377.15435965,0.00017106,4]
[352049214,1738901438361,-537.05626289,0.0001722,2]
[352049215,1738901438370,-587.0,0.00017243,2]
[352049216,1738901438379,-601.13534799,0.0001728,2]
[352049217,1738901438389,-537.05626289,0.0001732,2]
[352049218,1738901438399,-150.0,0.00017378,2]
[352049219,1738901438408,-537.0,0.00017378,2]
[352049220,1738901438417,-1975.0,0.00017378,2]
[352049221,1738901438428,-2298.0,0.00017378,2]
[352049222,1738901438438,-537.05626289,0.0001742,2]
[352049223,1738901438447,-719.31,0.00017499,2]
[352049224,1738901438458,-573.51699108,0.00017499,2]
[352049225,1738901438468,-102992.91801918,0.000175,14]
[352049226,1738901438717,-1276.2813817,0.000175,14]
[352049227,1738901438729,-14096.28335096,0.000175,14]
[352049228,1738901438741,-4552.21859874,0.000175,14]
[352049229,1738901438763,-874.692819,0.000175,14]
[352049230,1738901438778,-3815.36511288,0.000175,14]
[352049231,1738901438790,-8610.10138588,0.000175,14]
[352049232,1738901438800,-1926.2,0.00017516,2]
[352049233,1738901438810,-537.05626289,0.0001752,2]
[352049234,1738901438820,-500.0,0.00017534,4]
[352049235,1738901438830,-167.11,0.00017595,2]
[352049236,1738901438840,-13264.03974987,0.00017602,2]
[352049237,1738901438850,-537.05626289,0.0001762,2]
[352049238,1738901438860,-431.0,0.000177,7]
[352049239,1738901438870,-396.0,0.0001772,2]
[352049240,1738901438880,-537.05626289,0.0001772,2]
[352049241,1738901438890,-150.0,0.00017732,2]
[352049242,1738901438900,-255.520292,0.00017819,2]
[352049243,1738901438910,-537.05626289,0.0001782,2]
[352049244,1738901438920,-9850.30880441,0.00017899,2]
[352049245,1738901438938,-4386.9978675,0.00017899,2]
[352049254,1738901440211,-1767.0,0.00017522,2]
[352049255,1738901440221,-332.02345567,0.00017899,2]
[352049256,1738901440270,-2007.48,0.00017899,2]
[352049265,1738901443256,-500.0,0.00014999,2]
[352049266,1738901443266,-315.0,0.00015136,2]
[352049267,1738901443311,-185.0,0.00015136,2]
[352049268,1738901443322,-8424.60804572,0.00017899,2]
[352049269,1738901443378,-612.004984,0.00017899,2]
[352049298,1738901446299,-500.0,0.00015273,2]
[352049299,1738901446310,-500.0,0.0001541,2]
[352049300,1738901446320,-500.0,0.00015547,2]
[352049301,1738901446329,-532.474455,0.00015684,2]
[352049302,1738901446339,-1773.3,0.00017522,2]
[352049303,1738901446349,-12342.12471338,0.00017899,2]
[352049304,1738901446362,-152.67,0.000179,31]
[352049305,1738901446374,-152.67,0.000179,31]
[352049306,1738901446383,-152.67,0.000179,31]
[352049307,1738901446393,-152.67,0.000179,31]
[352049308,1738901446404,-152.67,0.000179,31]
[352049309,1738901446414,-152.67,0.000179,31]
[352049310,1738901446425,-152.67,0.000179,31]
[352049311,1738901446437,-152.67,0.000179,31]
[352049312,1738901446447,-537.05626289,0.0001792,2]
[352049313,1738901446457,-500.0,0.00017973,2]
[352049314,1738901446468,-500.0,0.00017973,2]
[352049315,1738901446478,-500.0,0.00017973,2]
[352049316,1738901446488,-500.0,0.00017973,2]
[352049317,1738901446499,-500.48140879,0.0001799,2]
[352049318,1738901446510,-500.0,0.0001799,2]
[352049319,1738901446521,-429.13377212,0.0001799,2]
[352049320,1738901446531,-552.89998302,0.00017998,2]
[352049321,1738901446541,-160.77397213,0.00017998,2]
[352049322,1738901446550,-7342.31099209,0.00017999,5]
[352049323,1738901446563,-24210.50108977,0.00017999,5]
[352049324,1738901446575,-347.0,0.00017999,5]
[352049325,1738901446587,-894.242857,0.00017999,5]
[352049329,1738901945395,2550.0,0.00019,120]
[352049335,1738902411394,-4786.22971069,0.00013288,2]
[352049336,1738902419626,-5000.0,0.00013288,2]
[352049337,1738902435096,-5000.0,0.00013833,2]
[352049338,1738902435118,-400.0,0.00013973,2]
[352049339,1738902435138,-500.0,0.00014164,2]
[352049340,1738902435159,-914.07,0.000146,2]
[352049341,1738902435180,-898.63,0.00015012,2]
[352049342,1738902435205,-300.0,0.00015081,2]
[352049343,1738902435226,-537.0,0.00015082,2]
[352049344,1738902435246,-1975.0,0.00015082,2]
[352049345,1738902435266,-2298.0,0.00015082,2]
[352049346,1738902435287,-396.0,0.00015082,2]
[352049347,1738902435307,-466.99056944,0.000152,2]
[352049348,1738902444088,-3054.01943056,0.000152,2]
[352049349,1738902444112,-159.21740131,0.00015458,2]
[352049350,1738902444136,-2256.16154859,0.00015495,2]
[352049389,1738902632503,-822.66,0.000147,2]
[352049391,1738902632513,-608.37178547,0.000149,2]
[352049393,1738902632523,-500.0,0.00015,2]
[352049395,1738902632532,-450.34882359,0.00015,2]
[352049397,1738902632541,-300.0,0.00015494,2]
[352049399,1738902632551,-2192.10754831,0.00015495,2]
[352049401,1738902632563,-746.335558,0.00015495,2]
[352049403,1738902632574,-999.93778239,0.00015495,2]
[352049406,1738902632589,-17159.14254171,0.00015495,2]
[352049408,1738902632599,-1200.0,0.0001555,2]
[352049410,1738902632608,-166.0,0.00015558,2]
[352049412,1738902632617,-500.0,0.00015999,2]
[352049414,1738902632627,-500.0,0.00015999,2]
[352049416,1738902632637,-500.0,0.00015999,2]
[352049418,1738902632647,-500.0,0.00015999,2]
[352049420,1738902632656,-500.0,0.00015999,2]
[352049423,1738902632665,-502.69828684,0.00015999,2]
[352049425,1738902632675,-502.7907399,0.00015999,2]
[352049427,1738902632684,-500.0,0.00015999,2]
[352049429,1738902632693,-5069.30407486,0.00016,2]
[352049431,1738902632704,-2312.8,0.00016,2]
[352049616,1738902638365,-274.84592514,0.00016,2]
[352049617,1738902638375,-1200.0,0.00016,2]
[352049618,1738902638384,-159.21740129,0.00016036,2]
[352049619,1738902638393,-500.0,0.00016136,2]
[352049620,1738902638403,-500.0,0.00016273,2]
[352049621,1738902638412,-229.86531404,0.0001641,2]
[352049622,1738902638421,-159.21740129,0.00016657,2]
[352049623,1738902638431,-420.0,0.00016949,2]
[352049624,1738902638441,-11501.72348772,0.00017014,4]
[352049625,1738902638451,-152.0,0.00017052,2]
[352049626,1738902638460,-159.21740129,0.00017279,2]
[352049627,1738902638470,-500.0,0.000175,2]
[352049628,1738902638479,-13264.03974987,0.00017641,2]
[352049629,1738902638488,-500.0,0.00017655,2]
[352049630,1738902638498,-500.0,0.00017685,2]
[352049631,1738902638507,-500.0,0.00017685,2]
[352049632,1738902638517,-193.65958208,0.00017685,2]
[352049634,1738902638526,-502.00142921,0.00017685,2]
[352049636,1738902638535,-500.0,0.00017685,2]
[352049637,1738902638545,-502.67315935,0.00017685,2]
[352049638,1738902638554,-505.76130526,0.00017685,2]
[352049639,1738902638563,-506.17539332,0.00017685,2]
[352049640,1738902638573,-1699.897285,0.00017686,2]
[352049641,1738902638582,-489.316,0.00017686,2]
[352049642,1738902638592,-689.34,0.00017898,2]
[352049643,1738902638601,-37955.54787068,0.00017899,2]
[352049644,1738902638611,-152.7,0.000179,31]
[352049645,1738902638620,-152.7,0.000179,31]
[352049646,1738902638629,-152.7,0.000179,31]
[352049647,1738902638639,-152.7,0.000179,31]
[352049648,1738902638648,-152.7,0.000179,31]
[352049649,1738902638658,-152.7,0.000179,31]
[352049650,1738902638667,-152.7,0.000179,31]
[352049651,1738902638676,-2656.85665339,0.000179,2]
[352049652,1738902638685,-159.21740129,0.000179,2]
[352049653,1738902638694,-567.07060092,0.00017973,2]
[352049654,1738902638703,-395.72574877,0.00017973,2]
[352049655,1738902638717,-500.0,0.00017973,2]
[352049656,1738902638726,-500.0,0.00017973,2]
[352049657,1738902638735,-500.0,0.00017973,2]
[352049658,1738902638745,-646.80990526,0.00017973,2]
[352049659,1738902638755,-500.0,0.00017973,2]
[352049660,1738902638766,-500.0,0.00017973,2]
[352049661,1738902638775,-500.0,0.00017973,2]
[352049662,1738902638784,-415.41511657,0.00017973,2]
[352049663,1738902638795,-500.0,0.00017973,2]
[352049664,1738902638804,-251.96210337,0.00017973,2]
[352049665,1738902638814,-500.0,0.00017973,2]
[352049666,1738902638823,-500.0,0.00017973,2]
[352049667,1738902638832,-203.54022446,0.0001799,2]
[352049668,1738902638843,-284.4583684,0.00017998,2]
[352049669,1738902638851,-77893.74510017,0.00017999,5]
[352049670,1738902638904,-517.5299952,0.00017999,5]
[352049671,1738902638915,-528.78757581,0.00017999,5]
[352049672,1738902638927,-718.019524,0.00017999,5]
[352049673,1738902639291,-1520.63228549,0.00017999,5]
[352049674,1738902639302,-3918.346181,0.00017999,5]
[352049675,1738902639314,-2851.46325109,0.00017999,5]
[352049676,1738902639325,-10287.27671394,0.00017999,5]
[352049677,1738902639334,-15066.04825755,0.00017999,5]
[352049678,1738902639346,-4459.16244119,0.00017999,5]
[352049679,1738902639355,-3538.52183453,0.00017999,2]
[352049680,1738902639366,-4069.08304494,0.00017999,2]
[352049681,1738902639377,-18133.93319017,0.00017999,2]
[352049793,1738902640491,-398.076,0.00017732,2]
[352049796,1738902640502,-566.17152,0.00017732,2]
[352049799,1738902640515,-334.98124228,0.00017732,2]
[352050290,1738902643542,-328.86353772,0.00017732,2]
[352050291,1738902643551,-2311.93598982,0.00017999,2]
[352050294,1738902644549,-604.0,0.00017999,2]
[352050310,1738902646605,-79470.90082627,0.00017999,2]
[352050312,1738903394812,158.65,0.00010959,2]
[352050313,1738903405351,793.26,0.00010959,2]
[352050314,1738903426107,151.9,0.00010959,2]
[352050315,1738903436850,759.55,0.00010959,2]
[352050316,1738903447372,208.66,0.00010959,2]
[352050317,1738903457884,173.89,0.00010959,2]
[352050318,1738903468369,869.45,0.00010959,2]
[352050319,1738903557146,-819.83657803,0.00013422,2]
[352050320,1738903635255,-2612.26821882,0.00013155,2]
[352050321,1738903635277,-1453.25725748,0.00013288,2]
[352050352,1738903832709,-2309.9,0.00012893,2]
[352050353,1738903832720,-279.83021472,0.00012893,2]
[352050354,1738903832776,-2410.26978528,0.00012893,2]
[352050355,1738903832785,-524.93686837,0.00013023,2]
[352050356,1738903832801,-730.36922204,0.00013023,2]
[352050357,1738903832811,-51.75577796,0.00013664,2]
[352050440,1738903838611,-3948.24422204,0.00013664,2]
[352050441,1738903838623,-194.264553,0.00013699,2]
[352050442,1738903838632,-400.0,0.00013973,2]
[352050443,1738903838642,-500.0,0.00014164,2]
[352050444,1738903838651,-300.0,0.00014345,2]
[352050445,1738903838661,-1450.6836398,0.00014346,2]
[352050446,1738903838671,-740.4,0.000147,2]
[352050447,1738903838680,-151.0,0.00014786,2]
[352050448,1738903838690,-4062.94599836,0.00014794,2]
[352050449,1738903838700,-504.58523692,0.00014794,2]
[352050450,1738903838709,-497.49704487,0.00014794,2]
[352050451,1738903838720,-500.0,0.00014794,2]
[352050452,1738903838729,-946.28,0.00014794,2]
[352050453,1738903838739,-500.0,0.00014794,2]
[352050454,1738903838748,-500.0,0.00014794,2]
[352050455,1738903838757,-12141.9509193,0.00014795,2]
[352050456,1738903838766,-152.0,0.00014806,2]
[352050457,1738903838775,-445.0,0.000149,5]
[352050458,1738903838785,-500.0,0.00014931,2]
[352050459,1738903838794,-946.28,0.00014931,2]
[352050460,1738903838803,-500.0,0.00014931,2]
[352050461,1738903838812,-500.0,0.00014931,2]
[352050462,1738903838822,-316.57870275,0.00014968,2]
[352050463,1738903838831,-500.0,0.00015068,2]
[352050464,1738903838840,-946.28,0.00015068,2]
[352050465,1738903838850,-500.0,0.00015068,2]
[352050466,1738903838859,-500.0,0.00015068,2]
[352050467,1738903838869,-500.0,0.00015205,2]
[352050468,1738903838878,-946.28,0.00015205,2]
[352050469,1738903838888,-500.0,0.00015205,2]
[352050470,1738903838897,-500.0,0.00015205,2]
[352050471,1738903838906,-2000.0,0.000153,2]
[352050472,1738903838915,-500.0,0.00015342,2]
[352050473,1738903838925,-946.28,0.00015342,2]
[352050474,1738903838934,-500.0,0.00015342,2]
[352050475,1738903838944,-500.0,0.00015342,2]
[352050476,1738903838953,-316.57870275,0.00015387,2]
[352050477,1738903838962,-742.21,0.00015479,2]
[352050478,1738903838972,-500.0,0.00015479,2]
[352050479,1738903838981,-946.28,0.00015479,2]
[352050480,1738903838990,-500.0,0.00015479,2]
[352050481,1738903839001,-500.0,0.00015479,2]
[352050482,1738903839010,-500.0,0.00015479,2]
[352050483,1738903839020,-150.0,0.00015479,2]
[352050484,1738903839029,-537.0,0.00015479,2]
[352050485,1738903839039,-1975.0,0.00015479,2]
[352050486,1738903839049,-2298.0,0.00015479,2]
[352050487,1738903839059,-150.0,0.00015479,2]
[352050488,1738903839071,-150.0,0.00015479,2]
[352050489,1738903839081,-396.0,0.00015479,2]
[352050490,1738903839091,-503.8952021,0.00015494,2]
[352050491,1738903839100,-502.38795463,0.00015494,2]
[352050492,1738903839110,-742.21,0.00015616,2]
[352050493,1738903839119,-500.0,0.00015616,2]
[352050494,1738903839128,-946.28,0.00015616,2]
[352050495,1738903839138,-500.0,0.00015616,2]